bitfinex/quotes_ETHUSD_20250424
["timestamp","ask_amount","ask_price","bid_price","bid_amount"]
[1745503109467,11.42633616,1750.4,1750.1,1.08221952]
[1745503110056,5.71311027,1750.4,1750.1,1.08221952]
[1745503112166,5.71238895,1750.6,1750.2,6.47808121]
[1745503112363,11.42497817,1750.6,1750.2,6.47808121]
[1745503112576,5.71238895,1750.6,1750.2,12.19152121]
[1745503112744,5.71238895,1750.6,1750.3,1.21915212]
[1745503112943,0.7659,1750.7,1750.3,1.21915212]
[1745503113150,5.71279801,1750.5,1750.2,0.7647]
[1745503114254,5.71302775,1750.4,1750.2,0.7647]
[1745503114562,11.42575179,1750.5,1750.1,6.79607165]
[1745503115063,5.71284797,1750.5,1750.1,6.79607165]
[1745503115242,11.42574047,1750.5,1750.2,0.67960717]
[1745503115642,0.31957898,1750.4,1750.2,0.67960717]
[1745503116247,5.71299913,1750.4,1750.2,0.67960717]
[1745503116551,12.19105918,1750.4,1750.0,11.63807983]
[1745503117065,6.47779913,1750.4,1750.0,11.63806157]
[1745503117673,6.47779913,1750.4,1750.0,17.35219914]
[1745503117842,6.47779913,1750.4,1750.0,17.35216221]
[1745503118168,0.7648,1750.4,1750.1,7.4491065]
[1745503118371,6.47778158,1750.4,1750.1,7.4491065]
[1745503118756,0.7648,1750.4,1750.1,7.4491065]
[1745503119661,6.47781531,1750.4,1750.1,1.73521622]
[1745503121491,6.47781531,1750.4,1750.1,7.44915816]
[1745503122975,0.7648,1750.4,1750.1,1.73521622]
[1745503123265,6.4779026,1750.4,1750.1,1.73521622]
[1745503123588,6.47779313,1750.4,1750.1,7.44909265]
[1745503123982,0.7648,1750.4,1750.1,7.44909265]
[1745503124294,0.8081,1750.6,1750.4,5.71288771]
[1745503124470,0.8091,1750.8,1750.6,5.71211552]
[1745503124647,0.31971339,1750.7,1750.5,6.74342953]
[1745503124842,0.31971339,1750.7,1750.6,5.7123272]
[1745503125041,0.31971339,1750.7,1750.6,9.4996272]
[1745503125247,0.31971339,1750.7,1750.6,11.12393287]
[1745503125672,0.31971339,1751.2,1750.7,5.71200091]
[1745503125847,0.31971339,1751.2,1750.9,6.50484125]
[1745503126049,0.31971339,1751.2,1751.1,5.71069613]
[1745503126259,0.31971339,1751.2,1751.1,6.50449613]
[1745503126549,0.31971339,1751.2,1751.1,7.82912514]
[1745503127163,0.407757,1751.4,1751.1,7.82912514]
[1745503127370,0.407757,1751.4,1751.2,5.71018804]
[1745503127871,0.407757,1751.4,1751.1,12.93394852]
[1745503128066,0.407757,1751.4,1751.1,18.64448335]
[1745503128388,0.407757,1751.4,1751.2,1.86444834]
[1745503128744,0.407757,1751.4,1751.2,7.57476167]
[1745503129462,0.407757,1751.4,1751.2,7.57462614]
[1745503129659,0.407757,1751.4,1751.3,5.71004396]
[1745503130077,0.407757,1751.4,1751.3,6.50224396]
[1745503130285,0.407757,1751.4,1751.3,8.58403183]
[1745503140563,0.407757,1751.4,1751.3,11.58403183]
[1745503147092,0.407757,1751.4,1751.3,12.61480784]
[1745503147292,0.407757,1751.4,1751.3,13.03225913]
[1745503148238,0.43850788,1752.3,1751.6,0.764]
[1745503148239,0.8249,1752.3,1751.6,0.764]
[1745503148393,0.8249,1752.3,1751.9,5.70808836]
[1745503148818,0.8249,1752.3,1752.0,5.70751652]
[1745503148993,6.53177884,1752.3,1751.9,5.70794182]
[1745503149194,0.8249,1752.3,1752.0,5.7075915]
[1745503149428,0.8249,1752.3,1751.9,5.70796583]
[1745503149616,6.5318207,1752.3,1751.9,5.70793277]
[1745503149816,6.5318207,1752.3,1751.9,11.41581298]
[1745503150131,0.8249,1752.3,1752.0,5.70775606]
[1745503150306,6.53169431,1752.3,1751.9,5.70788021]
[1745503150502,6.53169431,1752.3,1751.9,11.4157379]
[1745503150707,0.8249,1752.3,1752.0,5.7077025]
[1745503151802,0.8249,1752.3,1752.0,5.70761423]
[1745503152034,0.8249,1752.3,1752.0,5.70758818]
[1745503152239,0.8249,1752.3,1752.1,10.80519511]
[1745503152411,0.8249,1752.3,1752.1,11.83597112]
[1745503152612,0.776,1752.6,1752.3,5.70677213]
[1745503153242,6.48183513,1752.6,1752.2,6.89070817]
[1745503153804,6.48183513,1752.6,1752.2,1.18359711]
[1745503154117,6.48183513,1752.6,1752.1,10.80525863]
[1745503154118,1.03077601,1752.5,1752.1,5.098]
[1745503154318,0.7818,1752.2,1752.1,5.098]
[1745503156605,11.41332867,1752.4,1752.1,5.098]
[1745503156805,5.70660644,1752.4,1752.1,5.098]
[1745503157299,5.70660644,1752.4,1752.1,6.17855305]
[1745503158738,0.8158,1752.5,1752.2,5.70709372]
[1745503158917,6.52208037,1752.5,1752.1,11.88579707]
[1745503159114,0.8158,1752.5,1752.1,11.88579707]
[1745503159318,6.52215737,1752.5,1752.1,11.88579707]
[1745503159745,0.8158,1752.5,1752.1,11.88579373]
[1745503160109,0.8158,1752.5,1752.2,6.89566954]
[1745503160520,0.8158,1752.5,1752.2,12.60257079]
[1745503160747,0.8119,1752.9,1752.4,5.70627019]
[1745503161042,0.8119,1752.9,1752.6,6.73655532]
[1745503161536,0.8119,1752.9,1752.5,5.097]
[1745503161742,0.8119,1752.9,1752.5,12.06215216]
[1745503161942,6.51694981,1752.9,1752.5,12.06215216]
[1745503162238,6.51694981,1752.9,1752.5,12.0620715]
[1745503162739,6.51694981,1752.9,1752.5,17.76797757]
[1745503162943,6.51694981,1752.9,1752.5,12.06195076]
[1745503163239,6.51694981,1752.9,1752.6,1.20619508]
[1745503163614,0.8119,1752.9,1752.6,6.91188106]
[1745503163863,0.8119,1752.9,1752.6,1.20619508]
[1745503164072,6.51694425,1752.9,1752.6,1.20619508]
[1745503165155,0.8119,1752.9,1752.6,6.91200246]
[1745503165356,0.8119,1752.9,1752.7,0.69120025]
[1745503166075,1.214057,1753.1,1752.7,0.69120025]
[1745503166254,5.70470544,1753.0,1752.6,7.94268122]
[1745503166885,5.70470544,1753.0,1752.6,6.91190521]
[1745503167086,11.40949579,1753.0,1752.6,6.91190521]
[1745503167268,11.40945934,1753.0,1752.6,6.91190521]
[1745503167467,5.70470544,1753.0,1752.6,6.91190521]
[1745503167658,6.91846294,1753.1,1752.7,6.39663563]
[1745503167854,1.214057,1753.1,1752.7,12.85764228]
[1745503168056,0.407757,1753.1,1753.0,7.49098257]
[1745503168256,0.407757,1753.1,1753.0,11.55620656]
[1745503168463,0.407757,1753.1,1753.0,13.38537381]
[1745503172598,0.407757,1753.1,1753.0,12.62967381]
[1745503178223,0.88889268,1753.4,1753.3,5.70353048]
[1745503178426,0.88889268,1753.4,1753.3,7.87503054]
[1745503181241,0.88889268,1753.4,1753.3,6.84425453]
[1745503181741,0.88889268,1753.4,1753.3,7.67355453]
[1745503182035,0.88889268,1753.4,1753.3,8.10889493]
[1745503185443,0.88889268,1753.4,1753.3,7.67355453]
[1745503186433,0.88889268,1753.4,1753.3,8.09513774]
[1745503188309,0.88889268,1753.4,1753.3,7.67355453]
[1745503190454,0.88889268,1753.4,1753.3,6.84425453]
[1745503190862,0.7834,1753.5,1753.3,6.84405775]
[1745503191014,0.7834,1753.5,1753.4,5.089]
[1745503191216,0.7834,1753.5,1753.4,10.7922052]
[1745503191556,0.7834,1753.7,1753.5,5.70283158]
[1745503191912,0.7834,1753.7,1753.4,14.41296062]
[1745503192110,0.7834,1753.7,1753.4,13.58656062]
[1745503192327,0.7834,1753.7,1753.4,13.5864317]
[1745503192615,0.7834,1753.7,1753.4,19.28943618]
[1745503193216,6.48582314,1753.7,1753.4,6.85262358]
[1745503193844,0.7834,1753.7,1753.5,5.70277589]
[1745503194063,0.7834,1753.7,1753.5,7.63170753]
[1745503196337,6.7758367,1753.9,1753.6,1.33341947]
[1745503196871,6.45669641,1753.9,1753.6,1.33341947]
[1745503197166,12.15851682,1753.9,1753.6,1.33341947]
[1745503197555,5.70190812,1753.8,1753.6,1.33341947]
[1745503197741,0.8288,1753.7,1753.5,1.92893164]
[1745503198563,0.8288,1753.7,1753.5,7.63179053]
[1745503199270,0.8288,1753.7,1753.5,13.33445615]
[1745503199437,0.8288,1753.7,1753.6,5.70255474]
[1745503199971,0.8288,1753.7,1753.5,7.63159726]
[1745503200133,6.77800687,1754.1,1753.7,5.70210553]
[1745503200333,6.77800687,1754.1,1753.0,7.02247822]
[1745503200334,0.7793,1753.5,1753.0,7.02247822]
[1745503200533,0.8073,1753.4,1753.2,5.70371221]
[1745503200774,0.31956471,1753.8,1753.2,6.73448822]
[1745503200980,6.51002075,1753.6,1753.3,0.67344882]
[1745503201139,0.8073,1753.6,1753.3,6.37695276]
[1745503201341,0.8073,1753.6,1753.4,5.70319874]
[1745503201564,0.8073,1753.6,1753.3,6.37696091]
[1745503201771,0.8073,1753.6,1753.4,0.63769609]
[1745503202068,0.8073,1753.6,1753.5,5.70287995]
[1745503202272,1.07156471,1753.7,1753.4,11.42974139]
[1745503202482,0.752,1753.7,1753.4,11.42987314]
[1745503202761,0.752,1753.7,1753.4,5.72669609]
[1745503202961,0.752,1753.7,1753.4,11.42978035]
[1745503203180,0.752,1753.7,1753.4,11.42966369]
[1745503203409,0.752,1753.7,1753.5,5.70275595]
[1745503203585,0.752,1753.7,1753.4,11.42966369]
[1745503204661,6.45427448,1753.7,1753.4,5.72669609]
[1745503204862,0.752,1753.7,1753.4,11.42979553]
[1745503205058,0.752,1753.7,1753.4,5.72669609]
[1745503205059,6.45433879,1753.7,1753.4,5.72669609]
[1745503205277,0.752,1753.7,1753.4,10.79201306]
[1745503205477,5.99885917,1754.0,1753.6,5.70255474]
[1745503205778,1.08709546,1753.9,1753.7,5.70204286]
[1745503206013,1.08709546,1753.9,1753.6,5.70237236]
[1745503206426,6.46893246,1753.9,1753.5,5.70270177]
[1745503206731,6.49094532,1753.8,1753.5,1.75254819]
[1745503207840,6.49094532,1753.8,1753.4,10.79219945]
[1745503208725,5.70225295,1753.7,1753.3,6.37686322]
[1745503208965,0.7645,1753.6,1753.4,10.78919667]
[1745503209141,0.7645,1753.6,1753.5,5.70287995]
[1745503209441,0.7645,1753.6,1753.4,5.70319667]
[1745503209597,0.7645,1753.6,1753.4,7.01427747]
[1745503209796,0.7645,1753.6,1753.4,12.10012548]
[1745503210024,0.7645,1753.6,1753.4,12.10006176]
[1745503210394,0.7973,1753.8,1753.7,5.70203715]
[1745503210594,0.7973,1754.4,1754.0,5.70125427]
[1745503210794,1.094795,1754.8,1754.3,1.03077601]
[1745503210997,1.41478064,1754.8,1754.5,5.69947567]
[1745503211293,0.7973,1754.8,1754.6,5.086]
[1745503211494,5.69897988,1754.7,1754.2,6.45481623]
[1745503211699,0.7973,1754.5,1754.3,5.086]
[1745503211924,6.49712059,1754.5,1754.3,5.086]
[1745503212094,6.49693492,1754.5,1754.3,5.086]
[1745503212308,5.70029174,1754.3,1754.1,5.086]
[1745503212504,0.8317,1754.2,1753.9,17.105]
[1745503212717,5.7006436,1754.2,1754.0,6.11677601]
[1745503212922,5.70118301,1754.1,1754.0,5.086]
[1745503213742,5.70145199,1754.0,1753.7,5.086]
[1745503213919,5.70174708,1753.9,1753.5,5.70286318]
[1745503214106,5.70174708,1753.9,1753.6,5.086]
[1745503214310,6.47578886,1753.8,1753.6,5.086]
[1745503214547,12.17794273,1753.8,1753.6,5.086]
[1745503214712,5.70222957,1753.7,1753.6,5.086]
[1745503214912,5.70222957,1753.7,1753.3,6.37686106]
[1745503215113,6.47577042,1753.8,1753.4,5.086]
[1745503215450,0.7737,1753.8,1753.6,5.7025376]
[1745503215748,0.7737,1753.8,1753.6,5.70249786]
[1745503216425,0.7737,1753.8,1753.5,5.70285233]
[1745503216627,0.7737,1753.8,1753.4,19.23944851]
[1745503216950,0.7737,1753.8,1753.5,5.70266189]
[1745503217254,0.7737,1753.8,1753.6,10.78837865]
[1745503217455,5.70168435,1753.9,1753.6,5.086]
[1745503217808,6.49180112,1754.0,1753.6,11.61441722]
[1745503218043,6.49180112,1754.0,1753.6,5.70241722]
[1745503218240,6.49180112,1754.0,1753.7,5.086]
[1745503218241,0.7904,1754.0,1753.7,5.086]
[1745503218449,0.7904,1754.0,1753.8,5.70181802]
[1745503218827,0.7904,1754.0,1753.7,10.78808941]
[1745503219548,0.7904,1754.0,1753.7,5.70208941]
[1745503219756,7.14079484,1754.0,1753.8,5.086]
[1745503219959,1.43953367,1754.0,1753.8,5.086]
[1745503220353,0.7904,1754.0,1753.8,5.086]
[1745503221168,6.49167854,1754.0,1753.6,12.43548853]
[1745503221490,0.7904,1754.0,1753.8,5.086]
[1745503221672,0.8068,1754.2,1753.8,6.11677601]
[1745503221872,0.8068,1754.2,1753.8,17.52020043]
[1745503222061,0.8068,1754.2,1753.8,11.81846657]
[1745503222258,0.8068,1754.2,1753.8,13.65082019]
[1745503222460,5.70093445,1754.1,1753.8,7.94912963]
[1745503222649,6.50741551,1754.2,1753.8,6.91835362]
[1745503222851,5.70093752,1754.1,1753.8,6.91835362]
[1745503223375,6.50741551,1754.2,1753.8,12.62018182]
[1745503223671,6.50741551,1754.2,1753.8,18.32187686]
[1745503223838,0.8068,1754.2,1753.9,6.96345787]
[1745503225288,6.5074143,1754.2,1753.8,5.086]
[1745503225486,0.8068,1754.2,1753.9,5.70157597]
[1745503225693,6.50744106,1754.2,1753.8,10.78767059]
[1745503225848,6.50744106,1754.2,1753.9,5.086]
[1745503226557,0.8068,1754.2,1753.9,5.086]
[1745503226758,0.8068,1754.2,1754.0,5.70114525]
[1745503226938,0.8068,1754.2,1754.0,5.70111361]
[1745503227142,1.10579443,1754.5,1754.0,5.70105828]
[1745503227377,5.7004048,1754.3,1753.9,11.86620147]
[1745503227541,5.70088235,1754.2,1753.9,6.16478803]
[1745503227750,5.7010655,1754.1,1753.9,5.086]
[1745503227951,5.70125427,1754.0,1753.9,5.086]
[1745503228154,5.70177711,1753.9,1753.7,5.085]
[1745503228383,5.70190443,1753.8,1753.7,5.085]
[1745503228591,5.70177711,1753.9,1753.7,5.085]
[1745503228789,11.40359841,1753.9,1753.7,5.085]
[1745503229003,5.70177711,1753.9,1753.7,5.085]
[1745503230214,6.46092957,1753.7,1753.6,5.086]
[1745503230503,6.46092957,1753.7,1753.3,5.086]
[1745503230504,5.70329828,1753.4,1753.3,5.086]
[1745503230655,6.46199828,1753.4,1753.3,5.086]
[1745503231107,5.70397099,1753.2,1753.1,5.086]
[1745503231256,6.46776447,1753.0,1752.8,5.086]
[1745503231456,6.46776447,1753.0,1752.8,5.5946]
[1745503231457,0.7632,1753.0,1752.8,5.5946]
[1745503231711,0.7583,1753.2,1752.8,11.29951375]
[1745503231995,0.7583,1753.2,1752.9,5.70462026]
[1745503232194,6.46165941,1753.4,1753.0,5.70433231]
[1745503232494,5.70408956,1753.2,1752.8,12.33033091]
[1745503233008,5.70408956,1753.2,1752.9,1.23303309]
[1745503233172,5.70421636,1753.1,1752.8,6.62537601]
[1745503233591,5.70421636,1753.1,1752.8,1.53937601]
[1745503233790,5.70421636,1753.1,1752.8,6.62537601]
[1745503233973,0.7583,1753.4,1752.8,6.62537601]
[1745503234308,6.46160601,1753.4,1753.0,7.50475274]
[1745503235106,5.70377322,1753.3,1753.0,1.03077601]
[1745503235294,5.7039586,1753.2,1753.0,1.03077601]
[1745503235680,5.70418116,1753.1,1752.8,6.3787]
[1745503235875,5.70418116,1753.1,1752.8,5.5946]
[1745503236078,5.70418116,1753.1,1752.8,0.5086]
[1745503236307,5.70405287,1753.2,1752.8,0.5086]
[1745503236308,5.70405287,1753.2,1752.8,11.29872589]
[1745503236610,5.70405287,1753.2,1752.9,1.03077601]
[1745503236818,5.70366481,1753.3,1752.9,7.96839264]
[1745503237110,5.7036902,1753.3,1752.9,2.2637262]
[1745503237314,6.46166131,1753.4,1753.1,1.03077601]
[1745503238090,5.70159226,1753.9,1753.4,6.46202373]
[1745503238294,6.51786097,1754.1,1753.8,1.03077601]
[1745503238490,0.8167,1754.1,1753.8,5.085]
[1745503238692,5.70132046,1754.0,1753.8,5.085]
[1745503238884,6.51771208,1754.1,1753.8,5.085]
[1745503239086,12.21890648,1754.1,1753.8,5.085]
[1745503239282,5.70141758,1754.0,1753.8,5.085]
[1745503239597,6.51778254,1754.1,1753.8,5.6965776]
[1745503239905,0.8167,1754.1,1753.8,5.6965776]
[1745503240109,5.70095702,1754.1,1753.8,5.6965776]
[1745503240293,5.70125644,1754.0,1753.8,5.6965776]
[1745503240496,5.70143284,1754.0,1753.8,5.085]
[1745503240694,5.70157933,1753.9,1753.8,5.085]
[1745503241798,5.70252684,1753.7,1753.5,5.085]
[1745503242195,5.70209877,1753.8,1753.5,5.085]
[1745503242419,5.70209877,1753.8,1753.5,5.66971]
[1745503242729,11.40428611,1753.8,1753.5,5.66971]
[1745503243024,5.70200512,1753.8,1753.5,5.66971]
[1745503243381,0.8073,1754.3,1753.6,10.75525374]
[1745503243583,6.80458991,1754.5,1753.8,5.052699]
[1745503243810,0.29752152,1754.5,1754.3,5.70004191]
[1745503244014,0.407757,1754.9,1754.5,5.69948961]
[1745503244221,0.407757,1754.9,1754.6,5.69915233]
[1745503244427,5.69732512,1755.3,1754.6,5.69915233]
[1745503244428,0.7982,1756.5,1754.9,0.7717]
[1745503244626,1.21658136,1756.5,1755.6,5.69592654]
[1745503244799,5.6934639,1756.4,1755.5,5.69619727]
[1745503244994,5.69547962,1755.8,1755.5,5.084]
[1745503245199,0.56954796,1755.7,1755.5,5.084]
[1745503245415,0.7982,1756.0,1755.5,5.084]
[1745503245416,5.6955942,1755.8,1755.5,5.084]
[1745503246504,5.6953786,1755.9,1755.5,5.084]
[1745503246703,5.69543012,1755.8,1755.5,5.084]
[1745503247237,0.7982,1756.0,1755.5,5.084]
[1745503247541,5.69558105,1755.8,1755.5,5.084]
[1745503247735,6.83466105,1755.8,1755.5,5.084]
[1745503247939,5.69598989,1755.7,1755.5,5.084]
[1745503248145,5.69573389,1755.7,1755.5,5.084]
[1745503248504,11.39177268,1755.7,1755.5,5.084]
[1745503248703,11.39241378,1755.6,1755.2,5.082]
[1745503248946,5.69639794,1755.5,1755.2,5.082]
[1745503249148,5.69676065,1755.4,1755.2,5.082]
[1745503249511,5.69658475,1755.5,1755.2,5.082]
[1745503249906,5.69685609,1755.4,1755.2,5.082]
[1745503250443,5.69703184,1755.3,1754.9,0.7717]
[1745503250652,5.69703184,1755.3,1754.9,11.5510156]
[1745503250814,5.6969101,1755.4,1754.9,11.5510156]
[1745503251009,5.69715459,1755.3,1754.9,11.5510156]
[1745503251352,5.69759909,1755.2,1754.9,5.081]
[1745503251643,5.69738315,1755.2,1754.6,5.8807]
[1745503251944,5.69781811,1755.1,1754.6,5.8807]
[1745503252111,5.69781811,1755.1,1754.7,10.77994775]
[1745503252313,5.69781811,1755.1,1754.7,5.081]
[1745503252714,5.69712534,1755.3,1754.8,5.69850805]
[1745503253049,5.69712534,1755.3,1754.9,5.69832853]
[1745503254023,6.34229007,1755.4,1754.9,5.69832853]
[1745503254227,0.7572,1755.5,1754.9,10.75102938]
[1745503254426,5.69597502,1755.7,1755.2,5.69724055]
[1745503254613,5.69573389,1755.7,1755.3,5.69700345]
[1745503255208,7.62287274,1755.8,1755.3,5.69700345]
[1745503255413,5.69576831,1755.7,1755.3,5.69700345]
[1745503255646,5.69576831,1755.7,1755.3,6.83642785]
[1745503255957,5.69576831,1755.7,1755.3,11.91742785]
[1745503256642,11.39175368,1755.7,1755.3,6.2204244]
[1745503256844,5.69630553,1755.6,1755.3,5.081]
[1745503257851,5.69630553,1755.6,1755.2,5.69712313]
[1745503258058,5.69630553,1755.6,1755.2,10.77712313]
[1745503258954,5.69594522,1755.7,1755.3,5.69686828]
[1745503259156,0.7719,1756.1,1755.3,1.07768683]
[1745503259461,5.69543425,1755.8,1755.4,5.69647036]
[1745503259958,5.69533831,1755.9,1755.5,5.69616466]
[1745503260251,5.69494241,1756.0,1755.5,10.77616466]
[1745503260453,5.69510773,1755.9,1755.5,16.47236968]
[1745503260643,5.69510773,1755.9,1755.6,1.64723697]
[1745503260827,5.69491745,1756.0,1755.6,1.64723697]
[1745503261153,5.69510538,1755.9,1755.6,1.64723697]
[1745503262051,5.69525108,1755.9,1755.5,10.77628001]
[1745503262353,0.7719,1756.1,1755.6,0.8063]
[1745503262557,0.8313,1756.3,1755.7,5.69573389]
[1745503262754,0.8313,1756.3,1755.9,5.69495592]
[1745503262755,5.69389257,1756.3,1755.9,5.69495592]
[1745503262960,0.407757,1756.6,1756.1,5.69430347]
[1745503263157,5.69333052,1756.5,1756.0,6.46507823]
[1745503263455,5.6931942,1756.5,1756.1,5.69419666]
[1745503263759,5.6931942,1756.5,1756.1,5.69437601]
[1745503263952,0.407757,1756.6,1756.1,5.69443653]
[1745503264154,0.407757,1756.6,1756.4,0.8263]
[1745503264322,0.407757,1756.6,1756.5,5.69313976]
[1745503264522,0.407757,1756.6,1756.5,13.74583876]
[1745503264721,5.69010469,1757.5,1757.0,5.69127565]
[1745503265036,5.69012183,1757.5,1757.1,0.56912756]
[1745503265229,6.45148672,1757.6,1757.1,6.26014135]
[1745503265436,5.68990042,1757.5,1756.9,5.187]
[1745503265653,5.69281805,1756.6,1756.3,5.9399]
[1745503265851,5.69261975,1756.7,1756.3,5.186]
[1745503266034,5.69314305,1756.5,1756.3,5.186]
[1745503266233,5.6921891,1756.8,1756.3,5.186]
[1745503266426,5.69314559,1756.5,1756.3,5.186]
[1745503266623,0.56921891,1756.8,1756.2,10.87999134]
[1745503266941,5.69297598,1756.6,1756.2,10.87999134]
[1745503267142,5.69224517,1756.8,1756.1,5.052699]
[1745503267341,5.69269755,1756.7,1756.3,5.186]
[1745503268149,5.69269755,1756.7,1756.2,5.69389359]
[1745503268352,5.69269755,1756.7,1756.3,5.186]
[1745503268559,5.69269755,1756.7,1756.3,6.27398936]
[1745503268743,5.69197841,1756.9,1756.3,17.02031018]
[1745503268947,5.69168055,1757.0,1756.5,6.50793905]
[1745503269263,5.69185581,1756.9,1756.5,6.50793905]
[1745503269450,0.7535,1757.2,1756.8,5.69198391]
[1745503269651,11.38161648,1757.3,1756.8,11.44733611]
[1745503269960,5.69097603,1757.2,1756.8,11.44733611]
[1745503270257,5.69022419,1757.4,1756.8,5.75519839]
[1745503270424,5.69131982,1757.1,1756.8,5.75519839]
[1745503270758,0.7705,1757.5,1756.8,5.186]
[1745503270949,5.69159189,1757.0,1756.8,5.186]
[1745503271347,5.69159189,1757.0,1756.7,5.185]
[1745503271758,5.69203696,1756.9,1756.7,5.185]
[1745503271959,5.69313976,1756.5,1756.4,5.185]
[1745503272176,5.69283968,1756.6,1756.4,5.185]
[1745503272478,5.69313976,1756.5,1756.1,5.9954]
[1745503272770,11.38656541,1756.5,1756.1,3.0]
[1745503272982,5.69389766,1756.3,1756.0,5.185]
[1745503273283,5.69531904,1755.9,1755.7,5.185]
[1745503273440,5.69540949,1755.8,1755.7,5.185]
[1745503274135,5.69523182,1755.9,1755.4,10.881584]
[1745503274379,5.69493935,1756.0,1755.4,10.881584]
[1745503274545,5.6952375,1755.9,1755.5,1.0881584]
[1745503274744,5.69492917,1756.0,1755.5,1.0881584]
[1745503275073,5.69523909,1755.9,1755.5,6.78451931]
[1745503275446,6.52291615,1756.1,1755.6,5.69585093]
[1745503275661,6.52291615,1756.1,1755.6,7.449142]
[1745503276061,12.21762831,1756.1,1755.6,7.449142]
[1745503276261,5.69347353,1756.4,1755.6,7.449142]
[1745503276262,5.69425865,1756.2,1755.7,5.69572595]
[1745503276468,5.69425865,1756.2,1755.8,0.5695726]
[1745503277242,3.7996,1756.4,1755.5,1.0881584]
[1745503277490,5.69592131,1755.7,1755.3,0.8098]
[1745503277665,5.69561167,1755.8,1755.3,17.38848718]
[1745503277840,5.69561167,1755.8,1755.3,17.38838016]
[1745503278039,5.69561167,1755.8,1755.4,1.73883802]
[1745503278242,5.69524226,1755.9,1755.3,11.69168561]
[1745503278472,5.69524226,1755.9,1755.3,11.69162067]
[1745503278473,5.69554834,1755.8,1755.3,11.69162067]
[1745503278642,5.69554834,1755.8,1755.4,5.69655775]
[1745503278842,5.69540708,1755.9,1755.4,5.69659395]
[1745503279078,5.69540708,1755.9,1755.5,5.69623912]
[1745503279250,5.69540708,1755.9,1755.5,6.83552243]
[1745503279577,6.49417085,1756.1,1755.6,5.69575847]
[1745503279903,3.0,1756.2,1755.5,5.185]
[1745503280042,5.69559033,1755.8,1755.5,5.185]
[1745503280757,5.69476319,1756.0,1755.3,0.8098]
[1745503280758,5.69605832,1755.6,1755.3,0.8098]
[1745503280954,0.801,1755.9,1755.2,10.88319354]
[1745503281202,5.69618649,1755.6,1755.3,6.27431935]
[1745503281554,5.69590212,1755.7,1755.3,5.186]
[1745503281861,5.6958119,1755.7,1755.3,10.88279672]
[1745503282058,5.6958119,1755.7,1755.3,5.186]
[1745503282387,5.6958119,1755.7,1755.3,5.69689187]
[1745503282583,5.69620717,1755.6,1755.2,5.186]
[1745503282769,5.69607095,1755.6,1755.2,7.9821373]
[1745503282975,5.69582797,1755.7,1755.3,5.69688725]
[1745503283293,5.69608036,1755.6,1755.2,8.49331476]
[1745503283592,5.69608036,1755.6,1755.2,7.9821373]
[1745503284200,5.69667471,1755.5,1755.2,5.186]
[1745503284402,5.69677474,1755.4,1755.2,5.186]
[1745503284700,5.69703184,1755.3,1755.2,5.186]
[1745503284909,0.8047,1755.9,1755.2,10.88318138]
[1745503285072,0.8047,1755.9,1755.6,5.69598862]
[1745503285277,5.69477549,1756.0,1755.6,5.186]
[1745503285469,5.69461468,1756.1,1755.6,10.88182644]
[1745503285674,5.69478056,1756.0,1755.6,10.88182644]
[1745503285874,5.69457763,1756.1,1755.7,5.69571807]
[1745503286098,5.69423157,1756.2,1755.8,6.26480985]
[1745503286295,6.49863581,1756.3,1755.9,5.69499979]
[1745503286606,5.6932799,1756.5,1756.0,5.69465227]
[1745503286804,5.6932799,1756.5,1756.1,0.8091]
[1745503286965,0.8085,1756.5,1755.8,1.37617181]
[1745503287171,5.69478372,1756.0,1755.8,0.8066]
[1745503287394,5.69478372,1756.0,1755.7,5.186]
[1745503287575,5.6951138,1755.9,1755.7,5.186]
[1745503287782,5.69474144,1756.1,1755.4,10.88268463]
[1745503287783,5.69540949,1755.8,1755.4,10.88268463]
[1745503287990,0.8085,1756.0,1755.5,5.6962437]
[1745503288317,6.5034158,1756.0,1755.5,5.69638279]
[1745503288502,6.5034158,1756.0,1755.5,5.69613676]
[1745503288704,5.69541357,1755.8,1755.5,5.186]
[1745503288907,5.69588499,1755.7,1755.5,5.186]
[1745503290018,5.69588499,1755.7,1755.3,29.86594758]
[1745503290179,5.69564839,1755.8,1755.3,29.86594758]
[1745503290379,5.69564839,1755.8,1755.3,24.16891814]
[1745503290608,5.69588908,1755.7,1755.3,24.16891814]
[1745503290792,5.69588908,1755.7,1755.3,7.08591814]
[1745503291109,5.69588908,1755.7,1755.4,0.70859181]
[1745503291312,5.69564839,1755.8,1755.4,0.70859181]
[1745503291512,5.69525049,1755.9,1755.5,5.6963817]
[1745503291816,5.69525049,1755.9,1755.4,6.40521388]
[1745503291817,11.39064548,1755.9,1755.4,6.40521388]
[1745503292013,5.69525049,1755.9,1755.4,6.40521388]
[1745503292180,6.50341645,1756.0,1755.4,5.89459181]
[1745503292181,5.69566631,1755.8,1755.4,5.89459181]
[1745503292514,5.69575004,1755.7,1755.4,5.89459181]
[1745503292813,5.69533769,1755.9,1755.4,11.59113026]
[1745503293117,6.50334809,1756.0,1755.5,6.28569078]
[1745503293276,5.69513802,1755.9,1755.5,6.28569078]
[1745503293479,6.50346322,1756.0,1755.5,6.28569078]
[1745503293681,5.69462893,1756.1,1755.6,6.48441042]
[1745503293925,0.801,1756.2,1755.7,0.64844104]
[1745503294093,5.69497541,1756.0,1755.6,0.7886]
[1745503294878,5.69497541,1756.0,1755.6,6.48464312]
[1745503295087,5.6945848,1756.1,1755.6,6.48446976]
[1745503295313,6.49524631,1756.2,1755.6,6.48448118]
[1745503295515,5.69422759,1756.2,1755.8,5.69520779]
[1745503295726,6.50620205,1756.4,1755.9,5.69503426]
[1745503295926,12.19993723,1756.4,1756.0,5.6946343]
[1745503296128,0.8126,1756.4,1756.0,5.69463739]
[1745503296324,5.69332492,1756.5,1756.0,6.51473093]
[1745503296492,0.7864,1756.6,1756.2,5.69408898]
[1745503296698,5.69270777,1756.7,1756.2,10.93978819]
[1745503297110,5.69331441,1756.5,1756.2,5.246]
[1745503297905,5.69378807,1756.3,1756.2,5.246]
[1745503298125,5.69378807,1756.3,1756.0,0.8202]
[1745503298325,12.14439924,1756.5,1756.0,7.69092844]
[1745503298526,5.69323862,1756.5,1756.0,7.69074758]
[1745503298726,5.69336617,1756.5,1756.0,13.38529372]
[1745503298932,6.45421777,1756.7,1756.3,5.69358247]
[1745503299097,7.66886437,1756.7,1756.2,5.6939135]
[1745503299297,6.45421777,1756.7,1756.3,5.69364373]
[1745503299493,6.49207619,1756.9,1756.3,5.69351279]
[1745503299816,5.6921807,1756.8,1756.4,5.69345369]